bitfinex-derivatives/quotes_SOLF0:USTF0_20260316
["timestamp","ask_amount","ask_price","bid_price","bid_amount"]
[1773685968954,3.63619015,94.716,94.625,3.79132544]
[1773685969151,3.63619015,94.716,94.627,3.79132544]
[1773685969351,3.63619015,94.716,94.641,3.79132544]
[1773685969558,3.63619015,94.737,94.641,3.79132544]
[1773685970753,3.63619015,94.729,94.661,3.79132544]
[1773685971954,3.63619015,94.719,94.661,3.79132544]
[1773685975651,3.57450198,94.709,94.661,3.57266215]
[1773685976157,3.57450198,94.726,94.661,3.57266215]
[1773685976353,3.56780975,94.74,94.68,3.56780975]
[1773685976555,3.57450198,94.741,94.7,3.56780975]
[1773685977465,3.57450198,94.741,94.691,3.57266215]
[1773685978159,3.57450198,94.759,94.691,3.57266215]
[1773685978465,3.57450198,94.749,94.691,3.57266215]
[1773685979159,3.57450198,94.739,94.68,3.56780975]
[1773685979465,3.57450198,94.739,94.673,3.57266215]
[1773685979958,3.57450198,94.739,94.68,3.56780975]
[1773685980161,18.994,94.762,94.691,3.57266215]
[1773685980362,3.57450198,94.789,94.73,3.56780975]
[1773685980564,3.56780975,94.77,94.71,3.56780975]
[1773685980757,3.56780975,94.77,94.7,3.57266215]
[1773685980758,3.57450198,94.769,94.7,3.57266215]
[1773685980962,3.57450198,94.769,94.67,8.48759658]
[1773685980963,3.57450198,94.769,94.671,3.57266215]
[1773685985664,3.57450198,94.789,94.681,3.57266215]
[1773685985865,3.57450198,94.809,94.701,3.57266215]
[1773685986170,3.57450198,94.809,94.721,3.57266215]
[1773685989265,8.49082129,94.81,94.721,3.57266215]
[1773685989266,3.57450198,94.807,94.721,3.57266215]
[1773685989466,3.57450198,94.807,94.701,3.57266215]
[1773685989770,3.57450198,94.805,94.701,3.57266215]
[1773685990267,3.57450198,94.789,94.701,3.57266215]
[1773685992670,1.83660545,94.824,94.721,3.57266215]
[1773685992671,3.57450198,94.819,94.721,3.57266215]
[1773686000578,36.79450198,94.819,94.721,3.57266215]
[1773686000775,3.57450198,94.818,94.721,3.57266215]
[1773686005181,8.49082129,94.81,94.721,3.57266215]
[1773686005382,3.73221065,94.809,94.721,3.57266215]
[1773686008788,3.73221065,94.809,94.751,3.54709804]
[1773686010386,3.73221065,94.799,94.73,3.54709804]
[1773686010590,3.73221065,94.789,94.731,31.0]
[1773686011087,3.73221065,94.789,94.73,7.10837324]
[1773686011888,3.73221065,94.789,94.731,3.54709804]
[1773686012382,3.73221065,94.789,94.682,31.0]
[1773686012383,3.5612752,94.8,94.741,3.54709804]
[1773686012690,3.73221065,94.799,94.741,3.54709804]
[1773686013088,3.5612752,94.79,94.741,3.54709804]
[1773686013391,3.5612752,94.78,94.741,3.54709804]
[1773686013690,3.73221065,94.789,94.741,3.54709804]
[1773686015692,3.5612752,94.8,94.741,3.54709804]
[1773686015893,3.73221065,94.805,94.741,3.54709804]
[1773686016486,3.73221065,94.799,94.741,3.54709804]
[1773686017787,3.73221065,94.789,94.725,3.54709804]
[1773686017989,3.73221065,94.789,94.74,7.10837324]
[1773686018295,3.73221065,94.789,94.73,3.5612752]
[1773686018491,3.73221065,94.789,94.731,3.54709804]
[1773686018690,3.5612752,94.8,94.741,3.54709804]
[1773686018985,3.73221065,94.805,94.751,3.54709804]
[1773686019391,3.5612752,94.79,94.734,3.54709804]
[1773686019589,3.73221065,94.809,94.741,3.54709804]
[1773686019785,3.73221065,94.809,94.75,3.5612752]
[1773686020695,3.73221065,94.809,94.751,3.54709804]
[1773686021989,3.73221065,94.839,94.76,3.5612752]
[1773686022189,3.73221065,94.829,94.761,3.54709804]
[1773686022391,3.73221065,94.819,94.761,3.54709804]
[1773686023500,3.73221065,94.809,94.75,3.5612752]
[1773686023893,3.73221065,94.809,94.745,3.54709804]
[1773686024300,3.73221065,94.799,94.745,3.54709804]
[1773686027595,3.73221065,94.816,94.751,3.54709804]
[1773686027786,3.73221065,94.816,94.761,3.54709804]
[1773686028194,3.73221065,94.816,94.716,19.56522173]
[1773686028195,3.73221065,94.838,94.781,3.54709804]
[1773686028492,3.73221065,94.838,94.79,7.10837324]
[1773686028890,3.73221065,94.838,94.79,3.54709804]
[1773686032001,3.73221065,94.838,94.759,12.99297221]
[1773686032300,7.29348585,94.83,94.771,3.54709804]
[1773686033901,3.75561325,94.829,94.771,3.54709804]
[1773686034203,3.75561325,94.829,94.772,31.0]
[1773686034498,3.75561325,94.829,94.773,31.0]
[1773686034704,3.5612752,94.82,94.773,31.0]
[1773686035003,3.75561325,94.829,94.773,31.0]
[1773686035702,3.75561325,94.829,94.774,3.63249273]
[1773686040209,3.66866234,94.819,94.774,3.63249273]
[1773686041108,3.5612752,94.83,94.774,3.63249273]
[1773686042108,3.66866234,94.819,94.774,3.63249273]
[1773686044515,3.5612752,94.83,94.774,3.63249273]
[1773686044718,3.66866234,94.829,94.774,3.63249273]
[1773686045314,3.66866234,94.856,94.811,3.63249273]
[1773686045514,3.66866234,94.869,94.811,3.63249273]
[1773686049721,3.55997492,94.86,94.811,3.63249273]
[1773686050218,181.05529484,94.894,94.78,3.55997492]
[1773686050219,3.66866234,94.849,94.78,3.55997492]
[1773686050415,3.66866234,94.849,94.781,3.63249273]
[1773686050616,3.66866234,94.849,94.791,3.63249273]
[1773686051118,3.55997492,94.86,94.791,3.63249273]
[1773686051420,3.66866234,94.859,94.791,3.63249273]
[1773686052517,3.66866234,94.859,94.801,3.63249273]
[1773686055719,3.66866234,94.859,94.811,3.63249273]
[1773686055918,3.55997492,94.87,94.811,3.63249273]
[1773686056418,3.66866234,94.874,94.821,3.63249273]
[1773686057622,3.66866234,94.869,94.81,3.55997492]
[1773686057918,3.55997492,94.86,94.804,3.63249273]
[1773686058422,3.66866234,94.859,94.804,3.63249273]
[1773686059616,181.05529484,94.894,94.831,3.63249273]
[1773686059617,3.55997492,94.89,94.831,3.63249273]
[1773686060415,3.55997492,94.9,94.841,3.63249273]
[1773686060615,3.66866234,94.907,94.851,3.63249273]
[1773686060921,3.66866234,94.907,94.85,3.55997492]
[1773686060922,3.66866234,94.919,94.861,3.63249273]
[1773686061615,3.55997492,94.91,94.861,3.63249273]
[1773686061822,3.66866234,94.909,94.861,3.63249273]
[1773686062415,3.55997492,94.92,94.861,3.63249273]
[1773686063228,3.55997492,94.91,94.861,3.63249273]
[1773686064020,33.22,94.949,94.861,3.63249273]
[1773686064021,3.69868044,94.919,94.861,3.63249273]
[1773686067223,3.55997492,94.93,94.861,3.63249273]
[1773686067527,3.55997492,94.93,94.871,3.80515182]
[1773686067834,7.25865536,94.93,94.871,3.80515182]
[1773686068732,3.69868044,94.93,94.871,3.80515182]
[1773686069130,3.69868044,94.959,94.891,3.80515182]
[1773686069330,3.69868044,94.959,94.838,18.978]
[1773686069331,3.69868044,94.959,94.901,3.80515182]
[1773686069731,3.69868044,94.949,94.901,3.80515182]
[1773686070734,3.69868044,94.939,94.856,3.80515182]
[1773686070930,3.55997492,94.93,94.871,3.80515182]
[1773686071126,3.69868044,94.939,94.881,3.80515182]
[1773686073038,3.55997492,94.95,94.891,3.80515182]
[1773686073334,3.69868044,94.954,94.891,3.80515182]
[1773686074034,52.15,94.981,94.891,3.80515182]
[1773686074035,3.69868044,94.949,94.891,3.80515182]
[1773686074435,3.55997492,94.93,94.891,3.80515182]
[1773686074732,3.69868044,94.929,94.87,3.55997492]
[1773686074937,3.69868044,94.929,94.815,38.58225428]
[1773686074938,3.69868044,94.919,94.861,3.80515182]
[1773686075238,3.69868044,94.919,94.871,3.80515182]
[1773686075430,3.69868044,94.934,94.871,3.80515182]
[1773686076029,3.55997492,94.93,94.871,3.80515182]
[1773686076436,3.55997492,94.92,94.871,3.80515182]
[1773686076833,3.55997492,94.9,94.824,3.80515182]
[1773686077040,3.55997492,94.9,94.841,3.80515182]
[1773686077339,3.69868044,94.909,94.841,3.80515182]
[1773686078928,3.69868044,94.909,94.805,33.2]
[1773686078929,3.69868044,94.909,94.851,3.80515182]
[1773686079731,3.55997492,94.91,94.851,3.80515182]
[1773686079935,3.69868044,94.909,94.861,3.80515182]
[1773686080141,3.55997492,94.9,94.846,3.80515182]
[1773686080735,3.55997492,94.89,94.846,3.80515182]
[1773686080948,3.55997492,94.88,94.83,3.80515182]
[1773686081148,3.55997492,94.9,94.841,3.80515182]
[1773686081548,7.25865536,94.9,94.841,3.80515182]
[1773686081743,3.69868044,94.899,94.841,3.80515182]
[1773686081946,3.55997492,94.89,94.841,3.80515182]
[1773686082150,3.69868044,94.899,94.841,3.80515182]
[1773686082346,3.55997492,94.89,94.841,3.80515182]
[1773686082949,3.55997492,94.89,94.802,42.99955907]
[1773686082950,3.69868044,94.964,94.861,3.80515182]
[1773686083150,3.69868044,94.934,94.871,3.80515182]
[1773686083454,3.69868044,94.934,94.881,3.80515182]
[1773686085351,3.69868044,94.934,94.851,3.80515182]
[1773686087261,3.69868044,94.969,94.851,3.80515182]
[1773686088050,137.78272865,95.096,94.881,3.80515182]
[1773686088051,3.69868044,94.986,94.881,3.80515182]
[1773686088657,3.69868044,94.986,94.882,3.80515182]
[1773686089455,3.69868044,94.986,94.883,3.80515182]
[1773686090050,3.69868044,94.986,94.862,31.65]
[1773686090051,3.69868044,94.986,94.901,3.80515182]
[1773686092454,18.937,95.044,94.901,3.80515182]
[1773686092654,3.91006123,95.018,94.921,3.64670836]
[1773686092856,3.91006123,95.018,94.941,3.64670836]
[1773686093256,3.91006123,95.059,94.941,3.64670836]
[1773686093956,3.91006123,95.039,94.941,3.64670836]
[1773686095064,3.89286714,95.009,94.911,3.64937621]
[1773686096562,3.89286714,94.989,94.911,3.64937621]
[1773686101159,3.89286714,95.019,94.931,3.64937621]
[1773686102064,3.89286714,95.009,94.931,3.64937621]
[1773686110075,3.89286714,95.039,94.931,3.64937621]
[1773686110578,3.89286714,95.039,94.951,3.64937621]
[1773686112972,3.89286714,95.077,94.971,3.64937621]
[1773686114578,3.89286714,95.073,94.971,3.64937621]
[1773686114973,3.89286714,95.039,94.954,3.64937621]
[1773686115178,3.89286714,95.039,94.921,3.64937621]
[1773686115779,3.89286714,95.039,94.931,3.64937621]
[1773686116579,3.89286714,95.038,94.931,3.64937621]
[1773686119476,3.89286714,95.029,94.931,3.64937621]
[1773686122678,3.89286714,95.029,94.951,3.67925906]
[1773686122879,3.89286714,95.029,94.942,3.67925906]
[1773686124386,3.59805716,95.019,94.942,3.67925906]
[1773686130882,3.59805716,95.019,94.95,7.22546407]
[1773686131078,3.59805716,95.019,94.95,3.67925906]
[1773686131289,3.59805716,94.989,94.932,9.74054814]
[1773686131487,3.59805716,94.989,94.931,3.67925906]
[1773686131988,3.59805716,94.989,94.94,3.54620501]
[1773686132190,3.59805716,95.006,94.951,3.67925906]
[1773686132385,3.59805716,95.006,94.941,3.67925906]
[1773686136195,3.59805716,95.006,94.947,3.67925906]
[1773686136489,3.59805716,95.006,94.948,3.67925906]
[1773686137889,3.59805716,95.006,94.928,3.67925906]
[1773686140294,3.59805716,95.006,94.932,3.67925906]
[1773686140489,3.59805716,95.006,94.936,3.67925906]
[1773686140689,3.59805716,95.006,94.937,3.67925906]
[1773686141489,3.59805716,95.006,94.938,3.67925906]
[1773686142292,3.59805716,95.006,94.939,3.67925906]
[1773686143295,3.59805716,95.006,94.941,3.67925906]
[1773686143991,3.59805716,95.006,94.942,3.67925906]
[1773686144192,3.59805716,95.006,94.944,3.67925906]
[1773686144387,3.59805716,95.027,94.944,3.67925906]
[1773686144588,3.59805716,95.027,94.946,3.67925906]
[1773686145692,3.59805716,95.027,94.96,9.74054814]
[1773686145896,3.59805716,95.027,94.962,3.67925906]
[1773686146096,3.59805716,95.027,94.963,3.67925906]
[1773686146499,3.59805716,95.027,94.965,3.67925906]
[1773686147592,3.59805716,95.027,94.954,9.82676215]
[1773686147792,3.59805716,95.027,94.936,5.36058005]
[1773686147998,3.59805716,95.027,94.941,5.36058005]
[1773686152797,3.54638894,95.0,94.941,5.36058005]
[1773686153011,18.938,95.041,94.93,3.54638894]
[1773686153012,3.54638894,94.99,94.93,3.54638894]
[1773686153595,3.54638894,94.98,94.925,5.27217832]
[1773686153801,3.54638894,94.97,94.906,5.29659075]
[1773686154103,3.54638894,94.99,94.921,5.29422025]
[1773686155405,3.54638894,94.97,94.92,3.54638894]
[1773686155596,3.54638894,94.97,94.91,3.54638894]
[1773686157109,3.54638894,94.96,94.905,5.3326121]
[1773686158300,3.54638894,94.96,94.89,3.54638894]
[1773686158600,3.54638894,94.96,94.9,3.54638894]
[1773686158805,3.54638894,94.95,94.888,5.30893569]
[1773686159104,3.54638894,94.94,94.888,5.30893569]
[1773686159603,52.111,94.973,94.888,5.30893569]
[1773686159604,3.54638894,94.96,94.888,5.30893569]
[1773686159801,3.54638894,94.95,94.89,3.54638894]
[1773686160001,3.54638894,94.95,94.888,5.30893569]
[1773686160206,3.54638894,94.93,94.872,5.32292966]
[1773686160902,3.54638894,94.93,94.86,8.86830673]
[1773686161100,3.54638894,94.93,94.861,5.32191779]
[1773686162708,3.54638894,94.92,94.861,5.32191779]
[1773686166311,3.54638894,94.91,94.85,3.54638894]
[1773686166514,3.54638894,94.9,94.844,5.275653]
[1773686166913,8.46400824,94.92,94.844,5.275653]
[1773686167615,8.46400824,94.92,94.825,5.27495978]
[1773686167916,8.46400824,94.88,94.801,5.27495978]
[1773686168613,18.966,94.898,94.801,5.27495978]
[1773686168813,33.18,94.897,94.801,5.27495978]
[1773686172422,8.46400824,94.88,94.801,5.27495978]
[1773686172718,8.46400824,94.88,94.76,8.46400824]
[1773686172719,33.18,94.879,94.784,5.25464951]
[1773686173619,18.97,94.878,94.784,5.25464951]
[1773686174019,8.46400824,94.88,94.784,5.25464951]
[1773686174211,18.965,94.904,94.72,27.46600824]
[1773686174212,8.46400824,94.9,94.791,5.24728678]
[1773686175116,33.18,94.906,94.818,5.25169293]
[1773686175323,41.66400824,94.92,94.818,5.25169293]
[1773686175522,19.54216244,95.019,94.818,5.25169293]
[1773686175523,8.46400824,94.94,94.818,5.25169293]
[1773686175719,33.2,94.939,94.818,5.25169293]
[1773686176822,8.46400824,94.92,94.818,5.25169293]
[1773686177819,8.46400824,94.92,94.821,5.26058803]
[1773686179019,33.2,94.924,94.821,5.26058803]
[1773686179624,33.2,94.926,94.821,5.26058803]
[1773686184525,8.46400824,94.92,94.821,5.26058803]
[1773686186132,33.2,94.919,94.821,5.26058803]
[1773686186830,3.55526241,94.89,94.83,8.77281341]
[1773686187032,3.55526241,94.89,94.831,5.21818621]
[1773686189123,33.2,94.919,94.831,5.21818621]
[1773686189124,3.55526241,94.88,94.831,5.21818621]
[1773686189529,3.55526241,94.89,94.831,5.21818621]
[1773686190024,33.2,94.919,94.831,5.21818621]
[1773686190025,3.55526241,94.9,94.831,5.21818621]
[1773686191134,3.55526241,94.89,94.831,5.21818621]
[1773686193130,3.55526241,94.88,94.831,5.21818621]
[1773686193328,3.55526241,94.9,94.831,5.21818621]
[1773686194931,3.55526241,94.89,94.831,5.21818621]
[1773686195437,3.55526241,94.88,94.831,5.21818621]
[1773686198232,3.55526241,94.88,94.778,12.93272681]
[1773686198441,3.55526241,94.87,94.811,5.1900904]
[1773686198631,3.55526241,94.88,94.811,5.1900904]
[1773686199034,3.55526241,94.88,94.821,5.1900904]
[1773686199431,9.7067674,94.932,94.821,5.1900904]
[1773686199637,3.55526241,94.89,94.831,5.18226199]
[1773686200237,33.2,94.931,94.831,5.18226199]
[1773686200436,3.55526241,94.9,94.84,3.55526241]
[1773686200633,3.55526241,94.9,94.831,5.18226199]
[1773686201239,3.55526241,94.88,94.831,5.18226199]
[1773686201439,42.9067674,94.931,94.831,5.18226199]
[1773686201440,9.7067674,94.925,94.831,5.18226199]
[1773686201640,3.55526241,94.89,94.831,5.18226199]
[1773686202136,9.7067674,94.925,94.831,5.18226199]
[1773686202442,3.55526241,94.89,94.831,5.18226199]
[1773686203947,3.55526241,94.91,94.841,5.15379457]
[1773686204245,3.55526241,94.89,94.841,5.15379457]
[1773686204538,3.55526241,94.88,94.821,5.15397122]
[1773686205145,3.55526241,94.9,94.831,5.15395764]
[1773686205737,33.2,94.931,94.831,5.15395764]
[1773686205738,3.55526241,94.89,94.831,5.15395764]
[1773686205944,3.55526241,94.88,94.831,5.15395764]
[1773686206446,3.55526241,94.88,94.77,64.2]
[1773686206447,3.55526241,94.87,94.811,5.14551008]
[1773686206839,3.55526241,94.86,94.811,5.14551008]
[1773686210450,3.55526241,94.87,94.811,5.14551008]
[1773686216653,3.55526241,94.86,94.811,5.14551008]
[1773686218056,3.55526241,94.84,94.773,5.08751128]
[1773686219553,18.974,94.861,94.773,5.08751128]
[1773686219554,3.55526241,94.83,94.773,5.08751128]
[1773686220348,3.55526241,94.84,94.773,5.08751128]
[1773686220553,3.55526241,94.83,94.773,5.08751128]
[1773686221947,3.55526241,94.82,94.773,5.08751128]
[1773686223959,3.55526241,94.82,94.758,5.11634223]
[1773686224155,3.55526241,94.81,94.76,5.11634223]
[1773686224563,3.55526241,94.82,94.761,5.11634223]
[1773686226160,3.55526241,94.81,94.761,5.11634223]
[1773686226356,3.55526241,94.8,94.761,5.11634223]
[1773686226563,3.55526241,94.8,94.721,33.2]
[1773686226564,3.55526241,94.79,94.741,5.1068389]
[1773686226755,3.56262293,94.79,94.741,5.1068389]
[1773686227562,3.56262293,94.78,94.722,5.094876]
[1773686227862,3.56262293,94.77,94.722,5.094876]
[1773686228070,3.56262293,94.73,94.622,12.45684503]
[1773686228256,3.56262293,94.7,94.631,12.45684503]
[1773686228460,3.56262293,94.7,94.587,31.65]
[1773686228461,3.56262293,94.7,94.641,12.45684503]
[1773686228863,8.49901984,94.73,94.641,12.45684503]
[1773686229557,8.49901984,94.71,94.641,12.45684503]
[1773686231565,8.49901984,94.71,94.601,12.43683161]
[1773686231764,8.49901984,94.69,94.601,12.43683161]
[1773686232067,33.22,94.689,94.601,12.43683161]
[1773686234260,33.24,94.703,94.601,12.43683161]
[1773686234460,8.49901984,94.71,94.616,2.113]
[1773686234766,33.24,94.719,94.617,12.4848875]
[1773686235264,8.49901984,94.71,94.617,12.4848875]
[1773686235970,8.49901984,94.71,94.582,33.24]
[1773686235971,13.03915246,94.842,94.641,12.48772953]
[1773686236163,33.24,94.759,94.641,12.48772953]
[1773686237358,8.49901984,94.72,94.641,12.48772953]
[1773686237563,41.73901984,94.72,94.641,12.48772953]
[1773686238973,33.24,94.735,94.641,12.48772953]
[1773686240070,33.24,94.735,94.643,12.49364049]
[1773686240770,33.24,94.735,94.643,14.60664049]
[1773686240972,33.24,94.735,94.643,12.49364049]
[1773686242762,8.49901984,94.76,94.657,2.112]
[1773686242966,8.49901984,94.76,94.65,8.49901984]
[1773686242967,8.49901984,94.76,94.658,12.49381103]
[1773686243766,8.49901984,94.74,94.658,12.49381103]
[1773686244579,8.49901984,94.74,94.638,12.53349025]
[1773686244875,33.22,94.739,94.638,12.53349025]
[1773686245371,33.22,94.739,94.654,12.53082654]
[1773686248368,8.49901984,94.74,94.654,12.53082654]
[1773686248571,33.22,94.739,94.654,12.53082654]
[1773686251381,8.49901984,94.74,94.654,12.53082654]
[1773686251382,33.22,94.738,94.654,12.53082654]
[1773686252679,8.49901984,94.72,94.635,12.58587518]
[1773686253276,41.71901984,94.72,94.64,12.58607144]
[1773686256787,19.002,94.719,94.601,12.58094295]
[1773686256984,19.002,94.719,94.608,12.58094295]
[1773686257686,8.49901984,94.7,94.608,12.58094295]
[1773686257982,33.22,94.699,94.608,12.58094295]
[1773686259688,8.49901984,94.68,94.611,12.56047833]
[1773686259889,8.49901984,94.68,94.57,12.56047833]
[1773686260184,8.49901984,94.66,94.57,12.56047833]
[1773686260383,33.22,94.659,94.57,12.56047833]
[1773686261287,33.22,94.659,94.54,8.49901984]
[1773686261288,33.22,94.659,94.572,12.56353545]
[1773686264892,8.49901984,94.6,94.519,12.47126044]
[1773686265093,8.49901984,94.57,94.499,12.46835688]
[1773686265285,33.22,94.587,94.499,12.46835688]
[1773686265490,8.49901984,94.64,94.499,12.46835688]
[1773686265491,33.22,94.589,94.499,12.46835688]
[1773686265794,8.49901984,94.58,94.499,12.46835688]
[1773686265991,8.49901984,94.56,94.48,12.46385405]
[1773686266197,8.49901984,94.54,94.48,12.46385405]
[1773686266393,8.49901984,94.54,94.48,10.69396726]
[1773686266697,8.49901984,94.56,94.48,10.69396726]
[1773686267695,33.24,94.562,94.48,10.69396726]
[1773686269204,8.49901984,94.56,94.48,10.69396726]
[1773686269409,33.24,94.562,94.48,10.69396726]
[1773686269907,8.49901984,94.58,94.48,10.69396726]
[1773686270698,33.24,94.587,94.482,11.56223731]
[1773686270903,8.49901984,94.6,94.482,11.56223731]
[1773686272505,8.49901984,94.6,94.47,8.49901984]
[1773686272506,8.49901984,94.6,94.484,11.5393074]
[1773686274108,8.49901984,94.64,94.484,11.5393074]
[1773686274109,8.49901984,94.58,94.484,11.5393074]
[1773686274310,33.24,94.579,94.484,11.5393074]
[1773686275108,8.49901984,94.56,94.484,11.5393074]
[1773686275911,33.24,94.579,94.484,11.5393074]
[1773686277007,8.49901984,94.58,94.484,11.5393074]
[1773686278507,8.49901984,94.6,94.499,11.53208212]
[1773686279405,33.24,94.605,94.499,11.53208212]
[1773686279601,8.49901984,94.61,94.499,11.53208212]
[1773686280210,8.49901984,94.59,94.499,11.53208212]
[1773686281112,8.49901984,94.59,94.499,13.64808212]
[1773686283511,8.49901984,94.61,94.51,11.55442976]
[1773686285707,8.49901984,94.61,94.512,11.55714919]
[1773686285911,33.24,94.609,94.512,11.55714919]
[1773686286511,33.24,94.609,94.518,11.55714173]
[1773686287920,19.019,94.635,94.518,11.55714173]
[1773686289614,33.24,94.634,94.518,11.55714173]
[1773686290615,8.52044999,94.62,94.518,11.55714173]
[1773686292920,8.52044999,94.58,94.491,11.57214304]
[1773686293116,33.22,94.579,94.491,11.57214304]
[1773686296113,8.52044999,94.56,94.491,11.57214304]
[1773686298315,8.52044999,94.54,94.451,11.59854641]
[1773686300223,33.24,94.573,94.461,11.60065663]
[1773686300823,8.52044999,94.58,94.461,11.60065663]
[1773686300824,33.24,94.577,94.461,11.60065663]
[1773686303218,9.76678928,94.599,94.481,11.63663316]
[1773686303422,33.24,94.598,94.481,11.63663316]
[1773686304822,8.52044999,94.58,94.481,11.63663316]
[1773686306727,19.028,94.591,94.481,11.63663316]
[1773686307526,8.52044999,94.58,94.481,11.63663316]
[1773686308315,19.031,94.576,94.481,11.63663316]
[1773686308522,9.76678928,94.57,94.481,11.63663316]
[1773686309226,9.76678928,94.566,94.481,11.63663316]
[1773686309428,9.76678928,94.572,94.481,11.63663316]
[1773686309631,33.24,94.571,94.481,11.63663316]
[1773686311431,8.52044999,94.56,94.461,11.51964041]
[1773686311723,33.24,94.559,94.461,11.51964041]
[1773686312127,28.79678928,94.579,94.461,11.51964041]
[1773686312128,33.24,94.563,94.461,11.51964041]
[1773686312724,19.03,94.579,94.461,11.51964041]
[1773686312931,33.24,94.578,94.481,11.51649839]
[1773686313823,8.52044999,94.56,94.475,11.54436766]
[1773686314024,33.24,94.559,94.475,11.54436766]
[1773686314631,19.035,94.558,94.475,11.54436766]
[1773686316828,33.24,94.559,94.475,11.54436766]
[1773686318833,8.52044999,94.58,94.475,11.54436766]
[1773686319034,33.24,94.579,94.475,11.54436766]
[1773686319336,8.52044999,94.56,94.475,11.54436766]
[1773686320236,19.031,94.575,94.475,11.54436766]
[1773686321631,33.24,94.579,94.475,11.54436766]
[1773686321832,18.28723927,94.6,94.491,11.49662944]
[1773686322034,8.52044999,94.62,94.494,11.47878988]
[1773686322334,33.24,94.619,94.511,11.47878988]
[1773686324036,8.52044999,94.6,94.511,11.47878988]
[1773686324236,33.24,94.599,94.511,11.47878988]
[1773686325640,8.52044999,94.58,94.459,11.50046502]
[1773686325839,10.58,94.631,94.459,11.50046502]
[1773686325840,8.52044999,94.56,94.459,11.50046502]
[1773686326145,33.24,94.559,94.459,11.50046502]
[1773686329145,8.52044999,94.56,94.459,11.50046502]
[1773686329346,33.24,94.559,94.459,11.50046502]
[1773686330651,8.52044999,94.56,94.459,11.50046502]
[1773686339159,8.52044999,94.54,94.459,11.50046502]
[1773686339360,33.24,94.539,94.459,11.50046502]
[1773686339757,19.039,94.538,94.459,11.50046502]
[1773686340060,9.76678928,94.559,94.459,11.50046502]
[1773686340260,9.86979597,94.563,94.461,11.45264785]
[1773686340459,8.52044999,94.57,94.467,11.45264785]
[1773686341262,8.52044999,94.56,94.467,11.45264785]
[1773686344059,8.52044999,94.56,94.462,13.15972796]
[1773686344060,8.52044999,94.56,94.469,11.5066878]
[1773686347960,8.52044999,94.56,94.471,11.51174441]
[1773686348569,8.52044999,94.54,94.457,33.24]
[1773686348768,33.24,94.539,94.457,11.52781945]
[1773686350765,33.24,94.538,94.457,11.52781945]
[1773686353075,9.86979597,94.536,94.457,11.52781945]
[1773686353373,9.86979597,94.537,94.457,11.52781945]
[1773686353569,8.53369853,94.52,94.457,11.52781945]
[1773686354671,8.53369853,94.52,94.42,44.80077543]
[1773686354672,8.53369853,94.52,94.423,31.0]
[1773686354872,8.53369853,94.52,94.425,11.59713651]
[1773686356675,19.042,94.519,94.425,11.59713651]
[1773686357875,8.53369853,94.5,94.425,11.59713651]
[1773686358178,8.53369853,94.5,94.42,11.56077543]
[1773686358378,19.042,94.519,94.421,11.62902854]
[1773686358379,8.53369853,94.48,94.421,11.62902854]
[1773686358579,33.24,94.499,94.421,11.62902854]
[1773686359984,33.24,94.498,94.421,11.59957616]
[1773686360579,8.53369853,94.5,94.421,11.59957616]
[1773686360783,3.5864509,94.48,94.421,11.59957616]
[1773686361385,3.5864509,94.5,94.441,11.7037498]
[1773686361778,3.5864509,94.49,94.441,11.7037498]
[1773686362281,3.5864509,94.5,94.441,11.7037498]
[1773686362682,33.26,94.513,94.441,11.7037498]
[1773686363282,8.53624642,94.54,94.441,11.7037498]
[1773686363490,41.79624642,94.54,94.441,11.7037498]
[1773686364887,33.26,94.547,94.443,11.56225328]
[1773686365087,33.26,94.547,94.451,11.56225328]
[1773686366177,105.95209216,94.795,94.442,33.26]
[1773686366178,33.26,94.591,94.481,11.57858475]
[1773686366389,33.26,94.59,94.481,11.57858475]
[1773686366688,8.53624642,94.56,94.481,11.57858475]
[1773686366986,8.53624642,94.54,94.481,11.57858475]
[1773686369985,8.53624642,94.54,94.459,11.619887]
[1773686369986,33.24,94.539,94.459,11.619887]
[1773686379798,19.039,94.537,94.459,11.619887]
[1773686381805,9.86979597,94.536,94.459,11.619887]
[1773686382006,19.039,94.537,94.459,11.619887]
[1773686382206,9.86979597,94.536,94.459,11.619887]
[1773686383199,19.04,94.533,94.459,11.619887]
[1773686383404,43.10979597,94.532,94.421,11.5627736]
[1773686383604,8.53624642,94.52,94.421,11.5627736]
[1773686384900,3.58448085,94.51,94.441,11.56530924]
[1773686385104,3.58448085,94.52,94.461,11.56530924]
[1773686385302,3.58448085,94.53,94.47,3.58448085]
[1773686385509,3.58448085,94.56,94.491,11.56534299]
[1773686386109,3.58448085,94.56,94.501,11.73778123]
[1773686386311,33.26,94.57,94.511,11.73778123]
[1773686386612,3.58448085,94.57,94.511,11.73778123]
[1773686387713,33.26,94.593,94.521,11.73758209]
[1773686387916,3.58448085,94.59,94.521,11.73758209]
[1773686388818,33.26,94.593,94.521,11.73758209]
[1773686389618,9.86979597,94.628,94.521,11.73758209]